Cogmind - Beta 13 @@@ ROGUE MODE // 2024.02.28 @ 13:23:38 Player: spider wisdom Result: Destroyed self via exploding Fusion Modulator Performance ------------- Evolutions (1) 500 Regions Visited (3) 600 Robots Destroyed (15) 75 Value Destroyed (450) 450 Prototype IDs (0) 0 Alien Tech Used (0) 0 Bonus (0) 0 TOTAL SCORE: 1625 Bonus ------- None Cogmind --------- Core Integrity 0/400 Matter 231/300 Energy 94/100 System Corruption 8% Temperature Danger (472) Movement Walking (120) Location -9/Materials Parts ------- > --- POWER (2) -------- (None) > --- PROPULSION (2) --- Aluminum Leg Aluminum Leg > --- UTILITY (3) ------ Small Storage Unit Weapon Shielding Weapon Shielding > --- WEAPON (2) ------- Beam Cannon > --- INVENTORY (8) ---- Visual Processing Unit Small Laser Grenade Launcher Peak State ------------ > --- POWER ------------ Ion Engine Improved Ion Engine > --- PROPULSION ------- Flight Unit Flight Unit > --- UTILITY ---------- Small Storage Unit Weapon Shielding Weapon Shielding > --- WEAPON ----------- Medium Laser Beam Cannon > --- INVENTORY -------- Visual Processing Unit Small Laser Grenade Launcher [Rating: 10] Favorites ----------- Power Ion Engine Engine Ion Engine Propulsion Light Treads Treads Light Treads Leg Aluminum Leg Flight Unit Flight Unit Utility Small Storage Unit Storage Small Storage Unit Protection Weapon Shielding Weapon Small Laser Energy Gun Small Laser Energy Cannon Beam Cannon Build | -11 -10 -10 -9 ------- Run | Yrd Mat Min Mat Slots Evolved 2 | . . . 2 Power 1 | . . . 1 Propulsion . | . . . . Utility 1 | . . . 1 Weapon . | . . . . Parts Attached 16 | 6 . . 10 Power 3 | 1 . . 2 Engine 3 | 1 . . 2 Core . | . . . . Reactor . | . . . . Propulsion 6 | 2 . . 4 Treads 2 | 2 . . . Leg 2 | . . . 2 Wheel . | . . . . Hover . | . . . . Flight 2 | . . . 2 Utility 3 | 1 . . 2 Device . | . . . . Storage 1 | 1 . . . Processor . | . . . . Hackware . | . . . . Protection 2 | . . . 2 Artifact . | . . . . Weapon 4 | 2 . . 2 Energy Gun 3 | 2 . . 1 Energy Cannon 1 | . . . 1 Ballistic Gun . | . . . . Ballistic Cannon . | . . . . Launcher . | . . . . Special Weapon . | . . . . Impact Weapon . | . . . . Slashing Weapon . | . . . . Piercing Weapon . | . . . . Special Melee Weapon . | . . . . Unidentified Prototypes . | . . . . Parts Lost 9 | . 1 1 7 Power 3 | . . . 3 Propulsion 4 | . . 1 3 Utility . | . . . . Weapon 2 | . 1 . 1 Highest Loss Streak 4 | . 1 1 4 To Critical Strikes . | . . . . Average Slot Usage (%) 81 | . 85 71 80 Engine 16 | . 14 14 18 Treads 18 | . 28 28 6 Storage 12 | . 14 14 11 Protection 9 | . . . 21 Energy Gun 20 | . 28 14 15 Energy Cannon 2 | . . . 6 Naked Turns . | . . . . Heaviest Build 24 | 13 13 11 24 Greatest Support 40 | 40 40 40 20 Greatest Overweight (x) 7 | . . . 7 Average Overweight (x) . | . . . 1 Largest Inventory Capacity 8 | 8 8 8 8 Average Capacity 7 | 7 8 8 8 Most Carried 7 | 5 3 3 7 Average Carried 2 | 1 2 3 3 Final Capacity 8 | 8 8 8 8 Final Carried 3 | 1 3 3 3 Class Distribution -------------------- 100% | Mutant Dominant Class ---------------- Mutant | -10/Materials Mutant | -10/Mines Mutant | -9/Materials Resources | -11 -10 -10 -9 ----------- Run | Yrd Mat Min Mat Matter Collected 304 | 236 20 . 48 Remotely . | . . . . Salvage Created 516 | . 131 . 385 Parts 30 | . 8 . 22 Haulers Intercepted . | . . . . Recyclers Shooed 2 | . . . 2 Parts Field Recycled . | . . . . Retrieved Matter . | . . . . Parts Self-Destructed . | . . . . Prevented . | . . . . Kills | -11 -10 -10 -9 ------- Run | Yrd Mat Min Mat Combat Hostiles Destroyed 11 | . 3 . 8 Guns 6 | . 3 . 3 Cannons 4 | . . . 4 AOE 1 | . . . 1 Classes Destroyed 7 | . 1 . 6 Worker 1 | . . . 1 Recycler 1 | . . . 1 Mechanic 1 | . . . 1 Operator 1 | . . . 1 Swarmer 1 | . . . 1 Grunt 9 | . 3 . 6 Sentry 1 | . . . 1 Best Kill Streak 4 | . 2 . 4 Combat Bots Only 4 | . 2 . 4 Max Kills in Single Turn 4 | . 1 . 4 Gunslinging . | . . . . Exploded 1 | . . . 1 Melee . | . . . . Uniques/NPCs Destroyed . | . . . . Combat | -11 -10 -10 -9 -------- Run | Yrd Mat Min Mat Hostile Shots Fired 108 | . 24 22 62 Missed 25 | . 4 4 17 Damage Taken 1299 | . 236 195 868 Core 471 | . 12 54 405 Absorbed by Shields . | . . . . Redirected to Shielding 43 | . . . 43 Core Remaining (%) 86 | 100 . 73 . Volleys Fired 44 | . 12 . 32 Largest 2 | . 2 . 2 Hottest 110 | . 80 . 110 Shots Fired 79 | . 23 . 56 Gun 52 | . 23 . 29 Cannon 27 | . . . 27 Launcher . | . . . . Special . | . . . . Kinetic . | . . . . Thermal 67 | . 11 . 56 Explosive . | . . . . Electromagnetic 12 | . 12 . . Robot Hit Streak 8 | . 5 . 8 Robot Miss Streak 4 | . 2 . 4 Penetration Max . | . . . . Secondary Targets . | . . . . Shots Hit Robots 47 | . 14 . 33 Core Hits 23 | . 7 . 16 Critical Kills . | . . . . Critical Parts Destroyed . | . . . . Critical Strikes 3 | . 1 . 2 Burn 2 | . . . 2 Corrupt 1 | . 1 . . Melee Attacks . | . . . . Impact . | . . . . Slashing . | . . . . Piercing . | . . . . Sneak Attacks . | . . . . Combat Hostiles . | . . . . Follow-up Attacks . | . . . . Damage Inflicted 1317 | . 170 2 1145 Guns 429 | . 170 . 259 Cannons 245 | . . . 245 Explosions 641 | . . . 641 Melee . | . . . . Ramming 2 | . . 2 . Kinetic . | . . . . Thermal 1235 | . 90 . 1145 Explosive . | . . . . Electromagnetic 80 | . 80 . . Impact . | . . . . Slashing . | . . . . Piercing . | . . . . Highest Corruption 8 | . . . 8 Average Corruption 7 | . . . 7 Corruption Purged . | . . . . Corruption Blocked . | . . . . Effects 12 | . . . 12 Message Errors 2 | . . . 2 Matter Fused 2 | . . . 2 Heat Flow Errors 2 | . . . 2 Energy Discharges 1 | . . . 1 Data Loss (minor) 1 | . . . 1 Data Loss (major) 1 | . . . 1 Misfires 1 | . . . 1 Weapon Failures 2 | . . . 2 Overload Shots . | . . . . Overflow Damage 403 | . . . 403 Projectiles . | . . . . Explosions 403 | . . . 403 Melee . | . . . . Knockbacks . | . . . . Impact . | . . . . Kinetic . | . . . . Secondary . | . . . . Self-Inflicted Damage 203 | . . . 203 Shots 2 | . . . 2 Rammed 4 | . 2 2 . Targets Rammed 4 | . 2 2 . Kicked . | . . . . Crushed . | . . . . Highest Temperature 702 | . 180 . 702 Average Temperature 190 | . 74 . 223 Received Heat Transfer 429 | . 150 69 210 Effects 8 | . . . 8 Shutdowns 1 | . . . 1 Energy Bleed 1 | . . . 1 Interference 2 | . . . 2 Matter Decay 1 | . . . 1 Short Circuit 1 | . . . 1 Damage (core) 2 | . . . 2 Siege Activations . | . . . . Robots Corrupted . | . . . . Combat Hostiles . | . . . . Parts Fried . | . . . . Impact Corruptions . | . . . . Robots Melted . | . . . . Combat Hostiles . | . . . . Parts Melted 2 | . . . 2 Heat Transferred 1993 | . 200 . 1793 Parts Sabotaged . | . . . . Parts Stolen . | . . . . Parts Stripped . | . . . . Power Chain Reactions . | . . . . Alert | -11 -10 -10 -9 ------- Run | Yrd Mat Min Mat Peak Influence 155 | . 155 . 131 Initial . | . . . . Average 42 | . 64 . 38 Maximum Alert Level . | . . . . Low Security (%) 100 | 100 100 100 100 Level 1 . | . . . . Level 2 . | . . . . Level 3 . | . . . . Level 4 . | . . . . Level 5 . | . . . . High Security . | . . . . Max Security . | . . . . Squads Dispatched 4 | . 3 . 1 Investigation 1 | . 1 . . Extermination . | . . . . Reinforcement 3 | . 2 . 1 Assault . | . . . . Garrison . | . . . . Intercept . | . . . . Searches Triggered . | . . . . Construction Impeded . | . . . . Haulers Reinforced . | . . . . Active Scanning Responses . | . . . . Cargo Convoy Interrupts . | . . . . Stealth | -11 -10 -10 -9 --------- Run | Yrd Mat Min Mat Distress Signals 2 | . . . 2 Communications Jammed . | . . . . Distress Signals . | . . . . Times Spotted 31 | . 14 5 12 Peak Tracking Total 5 | . 4 5 5 Tactical Retreats . | . . . . Traps | -11 -10 -10 -9 ------- Run | Yrd Mat Min Mat Traps Triggered 5 | . 1 . 4 Indirectly . | . . . . Trap Hack Attempts . | . . . . Triggered . | . . . . Disarmed . | . . . . Reprogrammed . | . . . . Reused . | . . . . Traps Extracted . | . . . . Installed . | . . . . Triggered . | . . . . Machines | -11 -10 -10 -9 ---------- Run | Yrd Mat Min Mat Machines Disabled 4 | . . . 4 Max in Single Turn 4 | . . . 4 Machines Repaired . | . . . . Machines Dismantled . | . . . . Machines Sabotaged . | . . . . Overloaded Fab Kills . | . . . . Hacking | -11 -10 -10 -9 --------- Run | Yrd Mat Min Mat Machines Accessed 2 | . 2 . . Terminals 2 | . 2 . . Fabricators . | . . . . Repair Stations . | . . . . Recycling Units . | . . . . Scanalyzers . | . . . . Garrison Access . | . . . . Total Hacks 4 | . 4 . . Successful 1 | . 1 . . Failed 3 | . 3 . . Catastrophic . | . . . . Database Lockouts . | . . . . Manual 3 | . 3 . . Terminals 4 | . 4 . . Fabricators . | . . . . Repair Stations . | . . . . Recycling Units . | . . . . Scanalyzers . | . . . . Garrison Access . | . . . . Terminal Hacks 1 | . 1 . . Alert Level 1 | . 1 . . Fabricator Hacks . | . . . . Repair Station Hacks . | . . . . Recycling Unit Hacks . | . . . . Scanalyzer . | . . . . Garrison Access Hacks . | . . . . Unauthorized Hacks . | . . . . Terminals . | . . . . Fabricators . | . . . . Repair Stations . | . . . . Recycling Units . | . . . . Scanalyzers . | . . . . Garrison Access . | . . . . Data Cores Recovered . | . . . . Used . | . . . . Hacking Detections . | . . . . Full Trace Events . | . . . . Feedback Events . | . . . . Feedback Blocked . | . . . . Robot Schematics Acquired . | . . . . Robots Built . | . . . . Authchips . | . . . . Time . | . . . . Total Robot Build Rating . | . . . . Part Schematics Acquired . | . . . . Parts Built . | . . . . Authchips . | . . . . Time . | . . . . Total Part Build Rating . | . . . . Parts Repaired . | . . . . Time . | . . . . Parts Recycled . | . . . . Recycled Matter . | . . . . Retrieved Matter . | . . . . Retrieved Components . | . . . . Parts Scanalyzed . | . . . . Part Schematics Acquired . | . . . . Parts Damaged . | . . . . Bothacking | -11 -10 -10 -9 ------------ Run | Yrd Mat Min Mat Used RIF Installer . | . . . . Robots Hacked . | . . . . Non-combat . | . . . . Combat . | . . . . Robot Hacks Applied . | . . . . Relay Couplers Released . | . . . . Fabnet Peak Effective % . | . . . . Robots Rewired . | . . . . Allies Hacked . | . . . . Hacks Repelled . | . . . . Allies | -11 -10 -10 -9 -------- Run | Yrd Mat Min Mat Total Allies . | . . . . Largest Group . | . . . . Highest-Rated Group . | . . . . Highest-Rated Ally . | . . . . Total Orders . | . . . . Ally Attacks . | . . . . Total Damage . | . . . . Kills . | . . . . Allies Corrupted . | . . . . Allies Melted . | . . . . Intel | -11 -10 -10 -9 ------- Run | Yrd Mat Min Mat Robot Analysis Total . | . . . . Derelict Logs Recovered . | . . . . Drone Launches . | . . . . Drone Recoveries . | . . . . Exploration | -11 -10 -10 -9 ------------- Run | Yrd Mat Min Mat Turns Passed 984 | 61 407 112 404 Spaces Moved 430 | 39 198 69 124 Core 30 | 12 . . 18 Treads 399 | 27 198 69 105 Legs . | . . . . Wheels . | . . . . Hover . | . . . . Flight 1 | . . . 1 Fastest Speed 50 | 50 160 160 160 Average Speed 178 | 126 160 160 234 Slowest Speed 400 | 160 160 160 400 Overloaded Moves . | . . . . Propulsion Burnouts . | . . . . Robots Hopped . | . . . . Cave-ins Triggered . | . . . . Exploration Rate (%) 16 | 4 28 19 14 Regions Visited 3 Branch Regions 1 Pre-discovered Areas . | . . . . Known Exits Taken . | . . . . Unknown Exits Taken 3 | 1 1 1 . Scrap Searched . | . . . . Spaces Dug . | . . . . Terrain Destroyed . | . . . . Melee . | . . . . Projectile . | . . . . AOE . | . . . . Terrain Rammed . | . . . . Walls Destroyed . | . . . . Machines Disabled . | . . . . Actions | -11 -10 -10 -9 --------- Run | Yrd Mat Min Mat Total 566 | 51 264 70 181 Wait 52 | . 51 . 1 Move 428 | 38 197 69 124 Hop . | . . . . Pick Up 20 | 7 2 . 11 Fast Attach . | . . . . Attach 16 | 6 . . 10 Detach 1 | . . . 1 Swap . | . . . . Drop 2 | . . . 2 Fire 44 | . 12 . 32 Melee . | . . . . Ram . | . . . . Kick . | . . . . Crush 3 | . 2 1 . Escape Stasis . | . . . . Rewire . | . . . . Trap . | . . . . Miscellaneous . | . . . . Route ------- -11/Scrapyard -10/Materials -10/Mines -9/Materials History --------- Turn | Location | Event 11 | -11/Scrapyard | Discovered new exit (range 16) 62 | -11/Scrapyard | Entered Materials 310 | -10/Materials | Build established: Mutant 443 | -10/Materials | Discovered new exit (range 13) 469 | -10/Materials | Entered Mines 473 | -10/Mines | Met a Derelict bent on vengeance 570 | -10/Mines | Discovered new exit (range 7) 581 | -10/Mines | Entered Materials 581 | -9/Materials | Evolved 2 slots: Power x1, Utility x1 974 | -9/Materials | Core integrity fell below 50% 984 | -9/Materials | Lost 4 parts (2p2n) 985 | -9/Materials | Destroyed self via exploding Fusion Modulator Last Messages --------------- 00978_ Dropped Flight Unit. 00979_ K-01 Serf collects debris. 00985_ Fusion Modulator explodes. 00985_ G-34 Mercenary destroyed. 00985_ Lgt. Ion Engine destroyed. 00985_ Destroyed Lgt. Ion Engine. 00985_ Broken Med. Laser destroyed. 00985_ Destroyed Broken Med. Laser. 00985_ Destroyed Hover Unit. 00985_ O-16 Technician destroyed. 00985_ Destroyed Wheel. 00985_ K-01 Serf destroyed. 00985_ Fusion Modulator explodes. 00985_ Destroyed Wheel. 00985_ Destroyed Lgt. Ion Engine. 00985_ Destroyed Com. Wheel. 00985_ Fusion Modulator explodes. 00985_ Destroyed Wheel. 00985_ Destroyed Unknown Device. 00985_ M-13 Machinist destroyed. Map ----- +----------------------------------------------------+ | ?????????????????????????????????????????????????? | | ?????????????????????????????????????????????????? | | ?????????????????????????????????????????????????? | | ?????????????????????????????????????????????????? | | ?????????????????????????????????????????????????? | | ?????????????????????????????????????????????????? | | ?????????????????????????????????????????????????? | | ?????????????????????????????????????????????????? | | ?????????????????????????????????????????????????? | | ?????????????????????????????????????????????????? | | ?????????????????????????????????????????????????? | | ?????????????????????????????????????????????????? | | ?????????????????????????????????????????????????? | | ?????????????????????????????????????????????????? | | ???????????????????????????+#????????????????????? | | ??????????????????????????? #????????????????????? | | ??????????????????????????? #????????????????????? | | ??????????????????????????? #????????????????????? | | ??????????????????????????? #???????? #??????????? | | ??????????????????????????? #??###?? ???????????? | | ??????????????????###+##### #?"""#? #??????????? | | ??????????? #T### ##"T"## #??????????? | | ??????????? #??????????? | | ?????????? ! #??????????? | | ?????????? #??????????? | | ???????????# @ """ ?????????????? | | ???????????# """ +??????????? | | ???????????# m =% """ #??????????? | | ???????????# "T" % % #??????????? | | ???????????????#### r r #??????????? | | ??????????????????# """ #??????????? | | ??????????????????#a """ #??????????? | | ??????????????????# % """ #??????????? | | ??????????????????# +??????????? | | ??????????????????# #??????????? | | ??????????????????# a #??????????? | | ??????????????????# #??????????? | | ??????????????????# ########### ##??????????? | | ??????????????????# #?????????? #???????????? | | ??????????????????# #????????????????????????? | | ??????????????????# #??????????????????##????? | | ????????????????#####+#######?????????????? #????? | | ????????????????# #????????????? #????? | | ????????????????# """ ] #????????????? ?????? | | ????????????????# """ ]* #????????????? ?????? | | ????????????????# """ #????????????? #?????? | | ????????????????# #???????????? #?????? | | ????????????????# #???????????? #?????? | | ????????????????# #???????????? #?????? | | ??????????????###########+###??????????## ##????? | +----------------------------------------------------+ Best States ------------- Heat Dissipation 28 Energy Generation 17 Energy Capacity 415 Matter Stores 300 Matter Capacity 300 Sight Range 16 Terrain Scan Density 10 Weapon Shielding 33 Evasion (%) 40 Recoil Reduction 2 Item Schematics ----------------- None Robot Schematics ------------------ None Fabricated ------------ Nothing Alien Tech Used ----------------- None Achievements -------------- None Challenges ------------ None Game ------ Seed CarbideCoolingDatajack Manual? 0 Play Time 00:11:51 Cumulative 4.4 hours Start 2024.02.28 @ 12:41:49 End 2024.02.28 @ 13:23:38 Sessions 1 Manual Loads 0 Difficulty Rogue Special Mode None Game No. 17 Rogue 11 Adventurer 6 Explorer 0 Win Type - Total 0 Types 0/0/0/0/0/0/0/0/0 Lore% 6 Gallery% 14 Achievement% 12 Wizard Run 0 Options --------- Layout 1 ASCII 0 Keyboard 1 Movement Numpad Keybinds 0 Fullscreen 1 Font 24/Terminus Map View 50x35 Zoom Use 0% Tactical HUD 1 Map Filters NONE Filters NONE Steam 1 RUN: 58a605fe-a826-409f-9966-9776d13f36a0